bitfinex/quotes_ETHUSD_20241223
["timestamp","ask_amount","ask_price","bid_price","bid_amount"]
[1734973132791,3.0,3376.0,3375.0,0.1818]
[1734973132992,2.96239,3375.7,3375.0,0.1818]
[1734973133211,3.0,3375.8,3375.0,0.1818]
[1734973133416,2.96296,3375.0,3374.9,0.63388992]
[1734973135202,2.96287,3375.2,3374.9,0.63388992]
[1734973135423,2.96288,3375.1,3374.9,0.63388992]
[1734973135577,2.96296,3375.0,3374.9,0.63388992]
[1734973137770,2.96296,3375.0,3374.9,0.81568992]
[1734973137974,2.96296,3375.0,3374.9,0.63388992]
[1734973139015,2.96276,3375.3,3374.9,0.63388992]
[1734973139390,2.96296,3375.0,3374.9,0.63388992]
[1734973142372,5.96296,3375.0,3374.9,9.92e-06]
[1734973142578,4.36058,3375.6,3374.9,9.92e-06]
[1734973142921,0.40825228,3375.7,3374.9,9.92e-06]
[1734973142922,2.96296,3375.0,3374.9,9.92e-06]
[1734973144514,3.11140742,3375.8,3374.9,9.92e-06]
[1734973144515,4.31257,3376.3,3374.9,9.92e-06]
[1734973144715,2.9627,3375.3,3374.9,9.92e-06]
[1734973145026,2.96296,3375.0,3374.9,9.92e-06]
[1734973145676,2.96296,3375.0,3374.9,0.10000992]
[1734973146297,1.363,3375.0,3374.9,0.10000992]
[1734973146491,2.96296,3375.0,3374.9,0.10000992]
[1734973147333,2.96296,3375.0,3374.9,9.92e-06]
[1734973147616,5.96296,3375.0,3374.9,9.92e-06]
[1734973148377,2.96296,3375.0,3374.9,9.92e-06]
[1734973149844,2.96184,3376.3,3374.9,9.92e-06]
[1734973150011,2.96273,3375.3,3374.9,9.92e-06]
[1734973150415,1.4018,3376.4,3374.9,9.92e-06]
[1734973150743,1.2786,3377.4,3375.5,2.96244]
[1734973150945,2.96151,3376.7,3375.6,3.80708474]
[1734973151464,2.96151,3376.7,3375.7,0.02961912]
[1734973151618,2.96122,3377.0,3375.8,3.17794]
[1734973151816,2.96059,3377.7,3375.8,0.2157]
[1734973152017,2.96146,3376.8,3375.8,0.2157]
[1734973152217,2.96146,3376.8,3375.9,0.38069747]
[1734973152406,2.96155,3376.7,3375.9,0.38069747]
[1734973152602,2.9611,3377.2,3375.8,0.2157]
[1734973152909,2.96141,3376.8,3375.8,0.2157]
[1734973153649,2.9613,3376.9,3375.8,3.17794]
[1734973154023,3.0,3377.6,3375.8,0.2157]
[1734973154554,3.0,3377.4,3375.8,0.2157]
[1734973154953,2.96172,3376.5,3375.8,0.2157]
[1734973155152,2.96111,3377.2,3375.8,0.2157]
[1734973155454,2.9615,3376.7,3375.9,0.2157]
[1734973155754,2.96257,3375.5,3375.0,0.2157]
[1734973156092,2.96219,3375.9,3375.0,0.2157]
[1734973156093,2.96225,3375.9,3375.0,0.2157]
[1734973156208,2.9625,3375.6,3375.0,0.2157]
[1734973156565,2.96287,3375.1,3375.0,0.2157]
[1734973156757,2.96272,3375.3,3375.0,0.2157]
[1734973156956,2.96266,3375.4,3375.0,0.2157]
[1734973157160,2.96282,3375.2,3375.0,0.2157]
[1734973157313,2.96208,3376.0,3374.6,0.2157]
[1734973157508,2.96296,3375.0,3374.6,0.2157]
[1734973157736,2.96243,3375.7,3374.6,0.2157]
[1734973157938,2.96243,3375.7,3374.6,3.17899]
[1734973158252,2.96187,3376.3,3375.2,2.96278]
[1734973158411,3.0,3376.6,3375.3,0.317848]
[1734973158612,3.0,3376.6,3375.0,0.2157]
[1734973158613,2.96244,3375.6,3375.0,0.2157]
[1734973159052,2.96244,3375.6,3375.0,0.3157]
[1734973159255,2.96252,3375.5,3375.0,0.3157]
[1734973159620,2.96217,3375.9,3375.0,0.3157]
[1734973159621,2.96262,3375.4,3375.0,0.3157]
[1734973160015,1.3318,3376.3,3375.0,0.3157]
[1734973160341,2.96208,3376.0,3375.0,0.3157]
[1734973160542,3.0,3376.5,3375.0,0.3157]
[1734973160714,2.96256,3375.5,3375.0,0.3157]
[1734973161112,1.3495,3376.5,3375.0,0.1]
[1734973161113,2.96287,3375.1,3375.0,0.1]
[1734973161414,2.96287,3375.1,3374.5,0.1699293]
[1734973161415,2.96296,3375.0,3374.5,0.1699293]
[1734973162057,5.96296,3375.0,3374.5,0.1699293]
[1734973163459,2.96296,3375.0,3374.5,0.1699293]
[1734973166217,5.96296,3375.0,3374.5,0.1699293]
[1734973166944,2.96331,3374.6,3374.5,9.22e-06]
[1734973167367,7.71421,3374.6,3374.5,9.22e-06]
[1734973168916,7.16421,3374.6,3374.5,9.22e-06]
[1734973169153,3.37121228,3375.0,3374.5,9.22e-06]
[1734973169327,1.3009,3376.5,3374.5,9.22e-06]
[1734973169516,2.962,3376.1,3375.0,2.96292]
[1734973169745,1.3009,3376.5,3375.2,3.11140742]
[1734973169746,1.84388736,3376.5,3375.2,3.11140742]
[1734973169966,1.84388736,3376.5,3374.8,0.2157]
[1734973170168,2.96242,3375.7,3374.8,0.2157]
[1734973170332,1.84388736,3376.5,3374.8,0.2157]
[1734973170685,1.84388736,3376.5,3374.9,0.02962917]
[1734973170836,2.96209,3376.0,3375.0,0.2157]
[1734973171031,2.96173,3376.4,3375.1,2.99249548]
[1734973171243,2.96155,3376.7,3375.6,2.96243]
[1734973171446,1.4249,3377.4,3375.7,0.2157]
[1734973171657,2.96185,3376.3,3375.7,0.2157]
[1734973171858,2.96155,3376.6,3375.7,0.2157]
[1734973172057,1.4249,3377.4,3374.9,0.33567366]
[1734973172347,2.96202,3376.1,3374.9,2.96302]
[1734973172578,2.96218,3375.9,3374.7,3.11140742]
[1734973172960,2.96119,3377.1,3374.7,3.11140742]
[1734973172961,2.96231,3375.8,3374.7,3.11140742]
[1734973173148,2.96231,3375.8,3374.7,6.07462742]
[1734973173344,1.3537,3376.5,3374.8,0.60746366]
[1734973173663,2.96244,3375.6,3374.5,9.22e-06]
[1734973174264,2.96227,3375.8,3374.6,2.96329]
[1734973174492,2.9624,3375.7,3374.6,2.96329]
[1734973175150,1.4211,3377.1,3374.7,3.14103676]
[1734973175497,4.38229,3377.1,3375.2,3.11140742]
[1734973175660,2.96135,3376.9,3375.7,6.07373742]
[1734973176189,2.96113,3377.1,3375.9,2.96212]
[1734973176552,2.96096,3377.3,3375.8,0.02962142]
[1734973176746,1.84388736,3378.0,3376.9,2.96127]
[1734973176952,2.96044,3377.9,3376.6,2.96148]
[1734973177265,4.80424736,3378.0,3376.7,3.11140742]
[1734973177676,2.95998,3378.4,3377.1,2.96111]
[1734973177907,2.95981,3378.6,3377.4,2.96085]
[1734973178113,2.95981,3378.6,3377.5,0.02960437]
[1734973178317,1.84388736,3378.7,3378.5,2.95986]
[1734973178613,1.84388736,3378.7,3378.6,2.9598]
[1734973179167,1.84388736,3380.2,3378.6,2.9598]
[1734973179406,1.84388736,3380.2,3378.8,0.25]
[1734973179564,1.84388736,3380.2,3379.4,2.95907]
[1734973179767,1.84388736,3380.2,3379.3,3.11140742]
[1734973180207,3.67403829,3380.8,3379.3,3.11140742]
[1734973180208,2.95796,3380.7,3379.3,3.11140742]
[1734973180368,2.95787,3380.8,3378.8,3.11140742]
[1734973180570,2.95871,3379.9,3378.8,3.11140742]
[1734973180793,0.33524716,3380.5,3378.4,2.9599]
[1734973180992,2.95831,3380.3,3378.4,3.56703074]
[1734973181221,2.95831,3380.3,3378.4,0.60713074]
[1734973181371,1.3519,3380.4,3378.2,3.11140742]
[1734973181569,2.95919,3379.3,3378.2,3.11140742]
[1734973182013,2.95877,3379.8,3378.3,0.0295971]
[1734973182311,3.0,3379.9,3378.2,3.11140742]
[1734973182509,2.9593,3379.2,3378.2,3.11140742]
[1734973182708,2.95938,3379.1,3378.2,3.11140742]
[1734973183005,3.0,3380.2,3377.7,3.11140742]
[1734973183213,2.95889,3379.7,3378.2,3.11140742]
[1734973183381,1.3519,3380.4,3378.2,3.11140742]
[1734973183582,2.95895,3379.6,3378.3,0.02959464]
[1734973183786,1.3519,3380.4,3378.2,3.11140742]
[1734973183984,2.95893,3379.6,3378.2,6.07155742]
[1734973184210,2.95893,3379.6,3378.3,0.60715574]
[1734973184414,1.3519,3380.4,3378.5,2.95986]
[1734973184918,2.95831,3380.3,3378.5,2.95986]
[1734973185210,2.95876,3379.8,3378.5,2.95986]
[1734973185727,2.95831,3380.3,3378.6,0.02959322]
[1734973185885,2.95831,3380.3,3378.6,2.98936322]
[1734973186075,2.95831,3380.3,3378.6,3.34901512]
[1734973186271,1.4351775,3382.8,3378.6,3.34901512]
[1734973186272,1.3549,3380.8,3379.2,3.11140742]
[1734973186476,1.3549,3381.1,3378.7,3.14099429]
[1734973186780,2.95858,3380.0,3378.7,6.07104742]
[1734973187284,0.33524716,3381.0,3378.5,0.1]
[1734973187504,2.95905,3379.5,3378.5,0.1]
[1734973187714,2.95883,3379.8,3378.5,0.1]
[1734973187888,2.95796,3380.7,3378.5,0.1]
[1734973187889,0.55,3380.5,3378.5,0.1]
[1734973188110,2.95891,3379.7,3378.5,0.1]
[1734973188428,2.95848,3380.2,3378.5,0.44764562]
[1734973188729,2.95859,3380.0,3378.7,6.07110742]
[1734973188908,2.95875,3379.9,3378.7,6.07110742]
[1734973189121,2.95876,3379.8,3378.7,3.11140742]
[1734973189428,2.95921,3379.3,3378.5,0.1]
[1734973189592,2.95902,3379.5,3378.5,0.1]
[1734973190013,2.9587,3379.9,3378.6,2.95974]
[1734973190208,2.95877,3379.8,3378.7,0.02959321]
[1734973190591,2.95877,3379.8,3378.6,3.265714]
[1734973190800,2.95887,3379.7,3378.6,0.305974]
[1734973191136,2.95847,3380.2,3378.6,0.305974]
[1734973191293,2.959,3379.6,3378.5,0.1]
[1734973191706,2.95849,3380.1,3378.5,0.1]
[1734973191894,2.95831,3380.3,3378.5,0.1]
[1734973191895,2.95918,3379.4,3378.5,0.1]
[1734973192225,4.26237,3379.8,3378.5,0.1]
[1734973192442,2.95954,3378.9,3378.5,0.1]
[1734973192893,3.0,3379.6,3378.5,0.1]
[1734973193301,2.9593,3379.2,3378.5,0.1]
[1734973194422,2.95961,3378.9,3378.5,0.1]
[1734973194731,3.0,3379.5,3378.5,0.1]
[1734973195097,2.9591,3379.4,3378.5,0.1]
[1734973195302,5.95908,3379.5,3378.5,0.1]
[1734973195303,3.0,3379.5,3378.5,0.1]
[1734973195504,2.9598,3378.6,3378.5,0.1]
[1734973196357,2.95955,3378.9,3378.5,0.1]
[1734973196536,3.0,3379.6,3378.5,0.1]
[1734973196701,2.95937,3379.1,3378.5,0.1]
[1734973196901,1.3036,3379.8,3378.5,0.1]
[1734973196902,3.0,3379.7,3378.5,0.1]
[1734973197140,2.95927,3379.3,3378.5,0.1]
[1734973197955,2.95928,3379.2,3378.5,0.1]
[1734973198509,2.95958,3378.9,3378.5,0.1]
[1734973198744,2.9598,3378.6,3378.5,0.1]
[1734973200168,6.0848,3378.6,3378.5,0.1]
[1734973200481,5.9598,3378.6,3378.5,0.1]
[1734973201187,5.9598,3378.6,3375.9,0.35]
[1734973201188,3.0,3377.9,3375.9,0.1]
[1734973201326,2.96075,3377.6,3375.9,0.42114074]
[1734973201531,2.96009,3378.3,3375.9,0.42114074]
[1734973201532,1.3649,3378.8,3376.7,3.11140742]
[1734973201823,1.3649,3378.8,3377.1,2.96106]
[1734973202281,1.3649,3378.8,3376.8,0.0296042]
[1734973202282,4.32458,3378.8,3376.9,2.96127]
[1734973202428,1.3649,3378.8,3376.9,0.02960622]
[1734973202639,1.3649,3378.8,3376.9,0.31410136]
[1734973202835,2.95954,3378.9,3377.2,3.11140742]
[1734973203141,1.3996,3379.7,3377.8,2.96042]
[1734973203372,2.95933,3379.2,3377.8,2.96042]
[1734973203547,1.2925,3380.5,3377.9,0.0295986]
[1734973203766,2.95919,3379.3,3378.2,3.11140742]
[1734973203995,2.95919,3379.3,3378.2,6.07151742]
[1734973204155,2.95902,3379.5,3378.3,2.96005]
[1734973204338,2.95911,3379.4,3378.3,2.96005]
[1734973204540,2.95972,3378.7,3377.9,0.6101626]
[1734973204737,2.95919,3379.3,3377.9,0.6101626]
[1734973204994,2.95936,3379.2,3377.7,3.11140742]
[1734973205305,4.3246,3380.4,3378.2,3.11140742]
[1734973205444,2.95865,3380.0,3378.3,2.96002]
[1734973205648,2.95865,3380.0,3378.8,2.95962]
[1734973205884,1.3663,3380.4,3378.2,3.11140742]
[1734973206089,4.32402,3381.0,3379.4,2.9591]
[1734973206283,2.9585,3380.1,3379.2,3.11140742]
[1734973206465,2.95726,3381.5,3379.3,2.98871912]
[1734973206647,2.95805,3380.6,3379.3,2.95913]
[1734973206841,0.30882238,3381.6,3378.8,2.95961]
[1734973206842,2.95825,3380.4,3378.8,2.95961]
[1734973207189,2.95825,3380.4,3378.7,3.11140742]
[1734973207190,2.95825,3380.4,3378.9,3.56664174]
[1734973207545,2.95789,3380.8,3378.9,0.60710174]
[1734973207758,2.95858,3380.0,3378.9,0.60710174]
[1734973207957,2.95823,3380.4,3379.2,3.11140742]
[1734973208214,3.0,3381.2,3379.3,0.02958786]
[1734973208352,2.95824,3380.4,3379.4,0.61003053]
[1734973208554,4.4097,3381.4,3379.4,0.61003053]
[1734973208785,3.0,3381.1,3379.4,0.61003053]
[1734973209059,2.9577,3381.0,3379.9,2.95858]
[1734973209681,2.9574,3381.4,3379.7,6.07022742]
[1734973209864,2.9574,3381.4,3379.8,3.56575274]
[1734973209865,2.9577,3381.1,3379.8,3.56575274]
[1734973210061,2.95775,3381.0,3379.8,3.56575274]
[1734973210277,1.4032,3381.7,3379.4,0.61003053]
[1734973210488,1.4032,3381.7,3378.3,3.29619074]
[1734973210489,2.95867,3379.9,3378.8,2.97342]
[1734973210811,1.4032,3381.3,3378.8,0.0138]
[1734973210812,2.95852,3380.1,3378.8,0.0138]
[1734973210956,7.3607,3381.3,3378.8,0.0138]
[1734973210957,2.95796,3380.7,3378.8,0.0138]
[1734973211156,2.95867,3379.9,3378.8,0.0138]
[1734973211369,2.95843,3380.2,3378.8,0.0138]
[1734973211670,2.95843,3380.2,3379.1,0.0138]
[1734973212396,3.0,3381.2,3379.1,0.0138]
[1734973212691,3.0,3380.3,3378.6,0.0138]
[1734973212892,2.95782,3380.9,3378.9,2.95945]
[1734973213099,2.95729,3381.5,3379.3,0.0138]
[1734973213279,2.95735,3381.4,3379.9,0.0138]
[1734973213464,2.95704,3381.8,3380.1,2.95849]
[1734973213669,1.3146,3382.4,3380.6,0.0138]
[1734973213849,2.95727,3381.5,3380.6,0.0138]
[1734973214054,2.95697,3381.9,3380.6,3.00140657]
[1734973214288,4.27016,3383.5,3381.7,2.95705]
[1734973214498,4.27016,3383.5,3381.8,0.04336432]
[1734973214656,4.27016,3383.5,3381.5,3.11140742]
[1734973214657,2.95487,3384.3,3382.1,0.0138]
[1734973214858,2.95709,3381.7,3380.8,0.0138]
[1734973215094,2.9567,3382.2,3380.8,0.25358409]
[1734973215298,2.95725,3381.6,3380.8,0.25358409]
[1734973215494,2.95695,3381.9,3380.8,0.25358409]
[1734973215696,2.95595,3383.0,3380.8,0.25358409]
[1734973215896,2.95728,3381.5,3380.8,0.25358409]
[1734973216174,2.95648,3382.4,3380.8,0.0138]
[1734973216367,2.95698,3381.9,3380.8,0.0138]
[1734973216667,2.95667,3382.2,3380.9,0.0138]
[1734973216882,1.3893,3382.9,3380.9,0.0138]
[1734973217096,2.95738,3381.4,3380.9,0.0138]
[1734973217298,2.95678,3382.1,3380.9,0.0138]
[1734973217500,2.95745,3381.3,3380.9,0.0138]
[1734973217887,2.9577,3381.0,3379.7,0.0138]
[1734973218210,2.95749,3381.3,3379.8,0.3136011]
[1734973218522,2.95769,3381.1,3379.9,0.0138]
[1734973218876,3.0,3381.9,3380.9,0.1]
[1734973219175,2.95702,3381.8,3380.9,0.1]
[1734973219496,2.95653,3382.4,3380.9,0.1]
[1734973219877,2.95738,3381.4,3380.9,0.1]
[1734973220178,2.95744,3381.3,3380.9,0.1]
[1734973220377,2.9577,3381.0,3380.9,0.1]
[1734973220604,1.4317,3382.6,3381.0,0.0138]
[1734973220813,2.95664,3382.3,3381.0,3.00106076]
[1734973221112,2.95664,3382.3,3381.2,2.95752]
[1734973221320,1.4317,3383.0,3381.1,0.31010608]
[1734973221534,2.9569,3382.0,3381.0,0.0138]
[1734973221736,2.95693,3381.9,3381.0,0.0138]
[1734973222099,4.38766,3383.0,3381.0,0.0138]
[1734973222300,2.95693,3381.9,3381.0,0.0138]
[1734973222522,1.4317,3383.0,3381.0,0.0138]
[1734973222760,1.4317,3383.0,3381.1,0.0138]
[1734973222903,2.95707,3381.8,3381.1,0.0138]
[1734973223102,2.95668,3382.2,3381.1,0.0138]
[1734973223298,2.95711,3381.7,3381.1,0.0138]
[1734973223499,3.0,3382.5,3381.1,0.0138]
[1734973223727,2.95723,3381.6,3381.1,0.0138]
[1734973223936,3.0,3382.5,3381.1,0.04337432]
[1734973224149,2.95651,3382.4,3381.2,2.9575]
[1734973224364,1.4317,3383.0,3381.4,0.0138]
[1734973224561,2.95654,3382.4,3381.4,0.0138]
[1734973225038,3.0,3382.6,3381.4,0.0138]
[1734973225241,2.9566,3382.3,3381.4,0.0138]
[1734973225399,1.4317,3383.0,3381.4,0.0138]
[1734973225607,1.3374,3383.6,3381.4,0.0138]
[1734973225806,2.95608,3382.9,3381.6,2.95717]
[1734973226155,2.95569,3383.3,3381.7,0.0138]
[1734973226305,1.3374,3383.6,3381.7,0.0138]
[1734973226510,1.3019,3382.6,3381.3,0.0138]
[1734973226759,4.3019,3382.6,3381.3,0.0138]
[1734973226969,3.0,3382.6,3381.3,0.0138]
[1734973227116,1.3696,3383.1,3381.3,0.0138]
[1734973227326,1.3696,3383.5,3381.5,0.0138]
[1734973227682,2.95668,3382.2,3381.5,0.0138]
[1734973227813,2.95677,3382.1,3381.5,0.0138]
[1734973228170,1.3804,3382.8,3381.5,0.0138]
[1734973228374,1.3804,3382.8,3381.6,0.0138]
[1734973228578,2.95709,3381.7,3381.6,0.0138]
[1734973228865,3.0,3382.4,3381.6,0.0138]
[1734973229367,0.55,3383.8,3381.6,0.0138]
[1734973229575,2.95658,3382.3,3381.6,0.0138]
[1734973230075,2.95534,3383.7,3381.6,0.0138]
[1734973230076,2.9549,3384.2,3381.6,0.0138]
[1734973230214,2.95586,3383.2,3381.9,2.95688]
[1734973230415,2.95587,3383.1,3382.1,0.0138]
[1734973230650,0.30841022,3384.0,3382.2,0.0138]
[1734973230815,2.95556,3383.5,3382.4,0.0138]
[1734973231482,2.95507,3384.1,3382.9,2.95596]
[1734973231637,0.16992008,3384.5,3383.0,0.0138]
[1734973231839,2.95555,3383.5,3383.0,0.0138]
[1734973232017,0.16992008,3384.5,3382.1,0.0138]
[1734973232018,2.95618,3382.8,3382.1,0.0138]
[1734973232218,2.95635,3382.6,3382.1,0.0138]
[1734973232429,2.95639,3382.5,3382.1,0.0138]
[1734973232667,2.95649,3382.4,3382.1,0.0138]
[1734973232876,4.43210742,3384.1,3382.1,0.0138]
[1734973233177,4.43210742,3384.1,3381.5,0.1]
[1734973233178,4.3207,3382.9,3381.6,0.0138]
[1734973233378,2.95683,3382.0,3381.6,0.0138]
[1734973234281,4.3207,3382.9,3381.6,0.0138]
[1734973234440,2.95692,3381.9,3381.6,0.0138]
[1734973235023,4.3207,3382.9,3381.6,0.0138]
[1734973235024,2.95709,3381.7,3381.6,0.0138]
[1734973235389,2.8577,3381.0,3380.6,0.0138]
[1734973235582,2.8577,3381.0,3380.2,0.0138]
[1734973235951,1.42,3380.8,3379.3,0.132252]
[1734973236283,1.42,3380.8,3379.3,0.0138]
[1734973236502,2.9591,3379.4,3379.3,0.0138]
[1734973236774,2.95919,3379.3,3379.2,1.15619529]
[1734973237183,3.0,3380.3,3379.2,1.15619529]
[1734973237342,2.95902,3379.5,3379.2,1.15619529]
[1734973237517,2.95902,3379.5,3378.8,0.0138]
[1734973237518,2.9585,3380.1,3379.1,0.02959265]
[1734973237717,3.0,3381.3,3379.3,2.95919]
[1734973237964,4.35912,3381.4,3379.9,0.0138]
[1734973237965,2.95743,3381.4,3379.9,0.0138]
[1734973238172,1.4017,3381.9,3379.9,2.97244]
[1734973238318,1.2919,3382.6,3380.0,0.0138]
[1734973238523,2.95721,3381.6,3380.3,2.95825]
[1734973238724,3.11140742,3383.0,3381.0,0.0138]
[1734973238725,2.95595,3383.0,3381.0,0.0138]
[1734973238967,5.9112,3383.4,3381.0,0.0138]
[1734973239265,2.95719,3381.6,3381.0,0.0138]
[1734973239469,2.95644,3382.5,3381.0,0.0138]
[1734973239691,2.95691,3382.0,3381.0,0.0138]
[1734973239962,1.354,3382.5,3381.0,0.0138]
[1734973240117,2.95747,3381.3,3381.0,0.0138]
[1734973240321,2.95753,3381.2,3381.0,0.0138]
[1734973240561,2.95729,3381.5,3381.0,0.0138]
[1734973240759,3.0,3382.0,3381.0,0.0138]
[1734973241063,3.0,3382.3,3381.0,0.0138]
[1734973241265,2.95744,3381.4,3381.0,0.0138]
[1734973241436,2.95718,3381.6,3381.0,0.0138]
[1734973242043,3.0,3382.1,3381.0,0.1138]
[1734973242044,2.95744,3381.3,3381.0,0.1138]
[1734973242274,3.0,3382.0,3381.0,0.1138]
[1734973242482,3.0,3381.8,3381.0,0.1138]
[1734973242860,3.0,3382.4,3381.0,0.1138]
[1734973243263,2.95627,3382.7,3381.4,0.0414]
[1734973243446,1.4131,3383.3,3381.5,0.299882]
[1734973243787,3.11140742,3383.1,3381.4,0.0414]
[1734973243946,3.11140742,3383.1,3381.0,0.1]
[1734973243947,2.95752,3381.3,3381.0,0.1]
[1734973244143,2.95758,3381.2,3381.0,0.1]
[1734973244378,2.95738,3381.4,3381.0,0.1]
[1734973244587,1.4131,3382.0,3381.0,0.1]
[1734973244784,2.95621,3382.7,3381.0,0.1]
[1734973244785,2.95692,3381.9,3381.0,0.1]
[1734973245004,2.95692,3381.9,3381.0,0.1295734]
[1734973245324,2.95683,3382.0,3381.0,0.1]
[1734973245445,2.95598,3383.0,3381.0,0.1]
[1734973245651,2.95674,3382.1,3381.1,0.02957138]
[1734973245865,3.11140742,3383.6,3381.1,0.02957138]
[1734973245866,2.95543,3383.6,3381.3,2.95744]
[1734973246163,2.95514,3384.0,3381.1,0.31286714]
[1734973246164,2.95508,3384.0,3382.3,0.0414]
[1734973247311,1.4131,3384.2,3382.5,2.95636]
[1734973247455,2.95555,3383.5,3382.3,0.0414]
[1734973247657,2.95499,3384.1,3382.3,0.0414]
[1734973247883,2.95598,3383.0,3382.3,0.0414]
[1734973248086,2.95616,3382.8,3382.3,0.0414]
[1734973248295,2.95626,3382.7,3382.3,0.0414]
[1734973248767,5.90998,3384.1,3382.3,0.0414]
[1734973248967,2.95551,3383.6,3382.3,3.09793]
[1734973249230,2.95553,3383.5,3382.4,0.309793]
[1734973249527,5.9556,3383.4,3382.3,0.1414]
[1734973249671,2.95648,3382.4,3382.3,0.1]
[1734973249871,1.4131,3383.3,3382.3,0.1]
[1734973249872,2.95616,3382.8,3382.3,0.1]
[1734973250420,3.0,3383.4,3382.3,0.1]
[1734973250723,1.3708,3383.9,3382.3,0.1]
[1734973250724,3.0,3383.6,3382.3,0.1]
[1734973250928,2.95534,3383.7,3382.3,0.1]
[1734973251131,3.0,3383.8,3382.3,0.1]
[1734973251427,2.95648,3382.4,3382.3,0.1]
[1734973252370,3.0,3382.9,3382.3,0.1]
[1734973252628,1.4062,3383.2,3382.3,0.1]
[1734973252776,2.95648,3382.4,3382.3,0.1]
[1734973252969,2.95628,3382.7,3381.3,0.0414]
[1734973253205,2.95735,3381.4,3381.3,0.0414]
[1734973253611,3.0,3382.5,3381.3,0.0414]
[1734973253812,2.957,3381.8,3381.3,0.0414]
[1734973254312,2.95639,3382.5,3381.3,0.0414]
[1734973254518,3.0,3382.6,3381.3,0.3542554]
[1734973254678,2.9566,3382.3,3381.3,0.0414]
[1734973255717,3.0,3382.6,3381.3,0.0414]
[1734973255718,2.95674,3382.1,3381.3,0.0414]
[1734973256213,2.95658,3382.3,3381.3,0.0414]
[1734973256515,2.95583,3383.2,3381.5,0.0414]
[1734973256749,2.95536,3383.7,3382.5,2.95639]
[1734973256879,2.95552,3383.5,3382.6,0.0414]
[1734973257627,2.9549,3384.2,3382.6,0.0414]
[1734973257826,4.65774289,3384.5,3382.6,0.0414]
[1734973257981,3.0,3384.0,3382.6,0.0414]
[1734973258179,1.58402008,3384.5,3382.6,0.0414]
[1734973258428,1.58402008,3384.5,3382.8,2.9561]
[1734973258429,2.95517,3383.9,3382.8,2.9561]
[1734973258737,2.95552,3383.5,3382.9,0.29975]
[1734973259032,2.9557,3383.3,3382.6,0.0414]
[1734973259193,0.16992008,3384.5,3382.6,0.0414]
[1734973259376,2.95505,3384.1,3383.0,0.0414]
[1734973259978,3.12460008,3384.5,3383.3,2.95563]
[1734973260223,0.16992008,3384.5,3384.1,0.0414]
[1734973260546,0.16992008,3384.5,3383.4,0.299703]
[1734973260709,3.12456008,3384.5,3383.3,2.95561]
[1734973260916,3.12456008,3384.5,3383.4,2.9556]
[1734973261109,0.16992008,3384.5,3383.5,0.02954964]
[1734973261314,0.16992008,3384.5,3384.1,2.95498]
[1734973261660,0.16992008,3384.5,3383.4,3.11140742]
[1734973261661,0.16992008,3384.5,3383.9,3.11140742]
[1734973261798,0.16992008,3384.5,3382.9,3.11140742]
[1734973261998,2.95579,3383.2,3382.4,1.73429294]
[1734973262253,1.408,3384.3,3382.4,1.73429294]
[1734973262254,2.95596,3383.0,3382.4,1.73429294]
[1734973262403,2.9549,3384.2,3382.4,1.73429294]
[1734973262749,2.9549,3384.2,3382.3,1.73429294]
[1734973262750,2.95605,3382.9,3382.3,1.73429294]
[1734973262929,2.95525,3383.8,3382.3,1.73429294]
[1734973263131,3.0,3384.1,3382.3,1.73429294]
[1734973263132,5.95506,3384.1,3382.3,1.73429294]
[1734973263300,1.408,3384.3,3382.6,0.02956171]
[1734973263301,2.95561,3383.4,3382.6,0.02956171]
[1734973263495,2.95579,3383.2,3382.5,1.67648317]
[1734973263833,3.0,3384.2,3382.5,1.67648317]
[1734973263834,2.95568,3383.4,3382.5,0.52028788]
[1734973264033,2.95568,3383.4,3382.1,2.95672]
[1734973264402,3.0,3384.0,3381.7,3.11140742]
[1734973264717,3.0,3384.2,3381.7,3.11140742]
[1734973264718,2.95589,3383.1,3382.0,2.95681]
[1734973265099,2.95568,3383.4,3382.2,2.95664]
[1734973265318,1.408,3384.3,3381.8,0.0295604]
[1734973265319,2.95578,3383.2,3382.0,2.95674]
[1734973265524,2.95596,3383.0,3382.1,0.29862999]
[1734973265729,1.408,3384.3,3381.7,3.11140742]
[1734973265930,2.95572,3383.3,3381.6,0.31823771]
[1734973266142,2.95517,3383.9,3381.8,2.95696]
[1734973266344,2.95581,3383.2,3381.6,0.31823771]
[1734973266551,2.95614,3382.8,3381.6,0.31823771]
[1734973266710,3.0,3383.7,3381.6,0.31823771]
[1734973266711,2.95622,3382.7,3381.7,0.33050004]
[1734973266921,4.3004,3382.9,3381.3,0.1]
[1734973267136,4.4158,3383.5,3381.3,3.24097993]
[1734973267541,2.95604,3382.9,3381.7,2.95704]
[1734973267945,2.9556,3383.4,3381.6,2.9571]
[1734973267946,2.95604,3383.0,3381.6,2.9571]
[1734973268101,3.0,3383.9,3381.8,3.11140742]
[1734973268455,2.95561,3383.4,3382.3,2.95654]
[1734973268662,1.3101,3384.9,3382.4,0.02955974]
[1734973268866,4.26412,3385.3,3383.7,2.95526]
[1734973269043,7.37518742,3385.7,3383.0,0.02955147]
[1734973269221,3.12456008,3384.5,3383.0,0.02955147]
[1734973269556,3.12456008,3384.5,3383.3,2.9556]
[1734973269858,0.16992008,3384.5,3383.4,3.0295497]
[1734973270065,0.16992008,3384.5,3384.4,2.95473]
[1734973270558,2.46683918,3384.9,3384.0,3.11140742]
[1734973270763,2.95391,3385.4,3383.8,2.95525]
[1734973270902,1.3767,3385.8,3383.8,0.295525]
[1734973271101,2.95359,3385.7,3383.0,6.38138331]
[1734973271413,2.95455,3384.7,3383.4,2.95558]
[1734973271643,2.95466,3384.5,3383.4,2.95558]